bitfinex-derivatives/quotes_ETHF0:USTF0_20250616
["timestamp","ask_amount","ask_price","bid_price","bid_amount"]
[1750042098977,0.77723,2572.9,2572.7,0.77724]
[1750042099178,4.49132626,2573.2,2572.6,0.02733922]
[1750042099179,1.28352626,2573.2,2572.8,0.02733922]
[1750042099369,0.77722,2572.9,2572.8,0.02733922]
[1750042100072,0.77722,2572.9,2572.7,0.77726]
[1750042100272,0.77722,2572.9,2572.8,0.02514235]
[1750042100775,0.77719,2573.0,2572.8,0.80238235]
[1750042100983,1.28352626,2573.2,2572.8,4.01015235]
[1750042101172,1.28352626,2573.2,2572.8,3.98501]
[1750042101173,0.75202765,2573.0,2572.8,3.98501]
[1750042101373,0.77723,2572.9,2572.7,0.77725]
[1750042101569,0.77724,2572.8,2572.6,1.3471]
[1750042101769,0.77722,2572.9,2572.7,0.77725]
[1750042101985,0.77722,2572.9,2572.7,0.6903455]
[1750042102482,2.53942626,2573.2,2572.5,3.2078]
[1750042102483,0.77724,2572.8,2572.5,3.2078]
[1750042102674,0.77724,2572.8,2572.7,0.77727]
[1750042102877,0.77723,2572.9,2572.7,0.77727]
[1750042103075,0.77723,2572.9,2572.8,0.77724]
[1750042103277,2.53942626,2573.2,2572.8,0.80457173]
[1750042103786,0.77721,2572.9,2572.8,0.80457173]
[1750042104282,0.77721,2572.9,2572.8,0.02733173]
[1750042104988,0.00582626,2573.2,2572.8,7.61529698]
[1750042105185,0.77716,2573.1,2573.0,0.77716]
[1750042105488,0.77716,2573.1,2572.9,3.41698]
[1750042105684,0.77716,2573.1,2573.0,0.77717]
[1750042106182,0.77716,2573.1,2573.0,0.83183346]
[1750042106786,0.00582626,2573.2,2573.1,0.77714]
[1750042107092,0.00582626,2573.2,2573.1,9.66767352]
[1750042107382,0.77701,2573.6,2573.4,0.77703]
[1750042107589,3.98477,2573.7,2573.5,1.28099458]
[1750042107786,3.2078,2574.0,2573.6,0.77698]
[1750042108079,0.77695,2573.8,2573.7,0.77696]
[1750042108280,0.77695,2573.8,2573.6,2.14007]
[1750042108683,0.77695,2573.8,2573.7,0.13650356]
[1750042109575,0.77695,2573.8,2573.7,0.16373326]
[1750042109781,0.77695,2573.8,2573.7,0.94069326]
[1750042109986,0.77692,2573.9,2573.8,0.77693]
[1750042110381,0.77693,2573.8,2573.7,0.16373326]
[1750042110682,0.59262652,2573.8,2573.6,2.14007]
[1750042110882,0.59262652,2573.8,2573.7,0.77696]
[1750042111583,0.59262652,2573.8,2573.6,2.14008]
[1750042111781,0.77696,2573.7,2573.6,2.14008]
[1750042112182,0.77696,2573.8,2573.7,0.77696]
[1750042114692,0.77692,2573.9,2573.8,0.77693]
[1750042115095,0.77692,2573.9,2573.7,0.77694]
[1750042115785,0.77693,2573.8,2573.7,0.77694]
[1750042116293,0.77693,2573.8,2573.7,0.80420697]
[1750042116593,0.77693,2573.8,2573.7,0.02726697]
[1750042118488,0.72338561,2573.7,2573.6,4.31407417]
[1750042118688,0.77694,2573.8,2573.7,0.77695]
[1750042121300,0.00582626,2574.0,2573.9,0.7769]
[1750042121492,0.78269626,2574.0,2573.9,2.17400417]
[1750042123295,0.78269626,2574.0,2573.9,2.95090417]
[1750042123506,0.00582626,2574.0,2573.9,2.95090417]
[1750042124103,0.00582626,2574.0,2573.9,2.97795593]
[1750042124395,3.2078,2575.1,2573.9,37.93901279]
[1750042124603,0.77662,2574.9,2574.7,3.2078]
[1750042124796,3.2078,2575.1,2575.0,0.77657]
[1750042124990,3.2078,2575.5,2575.0,5.43537856]
[1750042125199,0.77654,2575.1,2575.0,0.05357439]
[1750042126405,0.77653,2575.2,2575.0,4.03794439]
[1750042126601,0.00582626,2575.3,2575.2,0.77651]
[1750042126997,0.78230626,2575.3,2575.2,0.05357439]
[1750042127192,0.00582626,2575.3,2575.2,0.83008439]
[1750042128095,0.00582626,2575.3,2575.2,7.19828439]
[1750042128300,0.00582626,2575.3,2575.2,4.37228856]
[1750042128805,0.00582626,2575.3,2575.2,2.19828439]
[1750042130902,0.00582626,2575.3,2575.2,2.22518263]
[1750042132497,0.00582626,2575.3,2575.2,2.25185878]
[1750042133003,0.00582626,2575.3,2575.2,0.88365878]
[1750042133303,0.00582626,2575.3,2575.2,6.55914878]
[1750042133997,0.00582626,2575.3,2575.2,7.33565878]
[1750042134507,0.78230626,2575.3,2575.2,6.55914878]
[1750042134700,0.00582626,2575.3,2575.2,7.33565878]
[1750042135004,0.78230626,2575.3,2575.2,7.33565878]
[1750042135905,0.78230626,2575.3,2575.2,6.55914878]
[1750042136104,3.99010626,2575.3,2575.2,0.10714878]
[1750042136305,0.7766,2574.9,2574.8,6.45782626]
[1750042138206,0.7766,2574.9,2574.8,0.0326905]
[1750042139103,0.7766,2574.9,2574.8,0.05940065]
[1750042140509,0.77672,2574.5,2574.4,3.2078]
[1750042140806,2.75403,2574.8,2574.7,0.06737406]
[1750042141010,7.75403,2574.8,2574.7,0.06737406]
[1750042141416,2.75403,2574.8,2574.7,0.06737406]
[1750042141810,0.77669,2574.6,2574.5,0.00582626]
[1750042143909,1.94142,2575.1,2574.5,0.00582626]
[1750042143910,9.66562626,2575.3,2574.5,0.00582626]
[1750042144105,1.94136,2575.1,2574.6,5.1189727]
[1750042144315,0.77666,2574.7,2574.6,5.1189727]
[1750042144509,0.77666,2574.7,2574.6,0.77668]
[1750042145018,0.77666,2574.7,2574.6,0.69633409]
[1750042145822,0.77666,2574.7,2574.6,0.72305491]
[1750042147624,0.77665,2574.8,2574.7,0.77666]
[1750042147820,0.77666,2574.7,2574.6,5.1189727]
[1750042148025,0.72321836,2574.7,2574.6,5.1189727]
[1750042149528,0.77665,2574.8,2574.7,0.77665]
[1750042150126,0.77662,2574.9,2574.8,0.77661]
[1750042150424,0.6215,2575.2,2574.6,4.3422927]
[1750042150425,0.77659,2575.0,2574.9,0.77659]
[1750042151125,0.77662,2574.9,2574.8,0.77662]
[1750042151827,0.77662,2574.9,2574.8,0.80334507]
[1750042152734,0.77659,2575.0,2574.9,0.77659]
[1750042153524,3.21362626,2575.3,2574.9,4.3422927]
[1750042153825,0.77653,2575.2,2575.1,0.82998014]
[1750042154528,0.78230626,2575.3,2575.2,0.77651]
[1750042154728,0.78230626,2575.3,2575.2,0.82996014]
[1750042155027,0.00582626,2575.3,2575.2,0.82996014]
[1750042155430,0.00582626,2575.3,2575.2,6.53645284]
[1750042155631,0.00582626,2575.3,2575.2,7.68281744]
[1750042155928,0.00582626,2575.3,2575.2,3.34052474]
[1750042156130,0.00582626,2575.3,2575.2,7.26896014]
[1750042156131,0.78230626,2575.3,2575.2,7.26896014]
[1750042156321,0.78230626,2575.3,2575.2,48.06896014]
[1750042156517,0.78230626,2575.3,2575.2,40.85345014]
[1750042156831,0.00582626,2575.3,2575.2,3.00094707]
[1750042157127,0.00582626,2575.3,2575.2,43.80094707]
[1750042157330,0.00582626,2575.3,2575.2,45.10184707]
[1750042158827,0.00582626,2575.3,2575.2,42.93086014]
[1750042159028,0.00582626,2575.3,2575.2,45.12860058]
[1750042159227,0.00582626,2575.3,2575.2,45.02176168]
[1750042159823,0.00582626,2575.3,2575.2,46.17410365]
[1750042160022,0.00582626,2575.3,2575.2,45.02176168]
[1750042160724,0.00582626,2575.3,2575.2,51.46076168]
[1750042161419,0.00582626,2575.3,2575.2,45.02176168]
[1750042161724,0.00582626,2575.3,2575.2,51.46076168]
[1750042162430,0.00582626,2575.3,2575.2,52.99696939]
[1750042165628,0.78230626,2575.3,2575.2,0.08020365]
[1750042168940,0.78230626,2575.3,2575.2,3.02770058]
[1750042169139,0.78230626,2575.3,2575.2,2.25119058]
[1750042169540,0.78230626,2575.3,2575.2,3.02770058]
[1750042170040,0.00582626,2575.3,2575.2,3.02770058]
[1750042171333,0.78230626,2575.3,2575.2,3.02770058]
[1750042171534,0.78230626,2575.3,2575.2,2.25119058]
[1750042172238,0.78230626,2575.3,2575.2,2.27791565]
[1750042172436,0.78230626,2575.3,2575.2,3.05442565]
[1750042172838,0.78230626,2575.3,2575.2,2.27791565]
[1750042173029,0.78230626,2575.3,2575.2,3.05442565]
[1750042173746,0.78230626,2575.3,2575.2,2.27791565]
[1750042174047,0.78230626,2575.3,2575.2,3.08115072]
[1750042174640,0.78230626,2575.3,2575.2,2.30464072]
[1750042174942,0.78230626,2575.3,2575.2,3.08115072]
[1750042175635,0.78230626,2575.3,2575.2,0.13365379]
[1750042176636,5.78230626,2575.3,2575.2,0.13365379]
[1750042176837,5.78230626,2575.3,2574.7,5.51211157]
[1750042176838,1.94129,2575.2,2574.7,1.15230364]
[1750042177031,0.77666,2574.7,2574.6,1.15230364]
[1750042177233,0.77666,2574.7,2574.5,1.54203397]
[1750042177234,0.77669,2574.6,2574.5,0.00582626]
[1750042177434,1.43539,2574.6,2574.5,0.00582626]
[1750042177635,1.43539,2574.6,2574.5,1.15974796]
[1750042178044,1.43539,2574.6,2574.5,0.00582626]
[1750042178244,1.43539,2574.6,2574.5,0.78254626]
[1750042178547,1.43539,2574.6,2574.5,1.93651878]
[1750042178745,1.43539,2574.6,2574.5,1.15979878]
[1750042179439,1.43539,2574.6,2574.5,3.33078571]
[1750042179743,1.94129,2575.2,2574.7,0.77665]
[1750042179944,3.20449,2575.2,2574.8,2.17098693]
[1750042180246,0.7766,2574.9,2574.8,2.17098693]
[1750042180442,0.77663,2574.8,2574.7,1.15369478]
[1750042180741,0.74989922,2574.7,2574.6,8.22789478]
[1750042181747,0.74989922,2574.7,2574.6,8.25461985]
[1750042181945,0.74989922,2574.7,2574.6,8.14776944]
[1750042182549,0.74989922,2574.7,2574.6,8.92445944]
[1750042182743,0.74989922,2574.7,2574.6,11.09544637]
[1750042182948,0.77665,2574.8,2574.7,0.77665]
[1750042183750,0.77665,2574.8,2574.7,0.80337507]
[1750042186146,0.77665,2574.8,2574.7,0.80338507]
[1750042187151,0.77662,2574.9,2574.8,0.77662]
[1750042187754,0.77662,2574.9,2574.8,0.05348398]
[1750042188349,0.77662,2574.9,2574.8,2.22447091]
[1750042188659,0.77662,2574.9,2574.8,2.25122982]
[1750042189049,0.77662,2574.9,2574.8,3.02785982]
[1750042189358,0.77662,2574.9,2574.8,0.08024289]
[1750042190949,0.77654,2575.1,2575.0,0.77657]
[1750042191154,1.40353,2575.2,2575.1,2.17098693]
[1750042191556,1.40353,2575.2,2575.1,2.25122982]
[1750042191950,1.40353,2575.2,2575.1,0.08024289]
[1750042203367,0.66957841,2575.1,2575.0,1.15499184]
[1750042205569,0.66957841,2575.1,2575.0,1.0748409]
[1750042206278,0.77653,2575.2,2575.0,4.02239783]
[1750042206467,0.77654,2575.1,2575.0,4.90546563]
[1750042206667,0.77654,2575.1,2575.0,4.12890563]
[1750042208273,0.00582626,2575.3,2575.0,5.66511334]
[1750042208476,0.78230626,2575.3,2575.2,2.17098693]
[1750042209470,0.78230626,2575.3,2575.2,2.19770563]
[1750042210770,0.78230626,2575.3,2575.2,0.0267187]
[1750042211074,0.72314829,2575.1,2575.0,5.73595464]
[1750042211472,0.77654,2575.2,2575.1,0.77654]
[1750042211678,0.00582626,2575.3,2575.2,0.77651]
[1750042211971,0.00582626,2575.3,2575.2,2.09071]
[1750042212277,0.00582626,2575.3,2575.2,42.89071]
[1750042212577,0.00582626,2575.3,2575.2,45.20464575]
[1750042212967,0.78230626,2575.3,2575.2,44.42813575]
[1750042213278,0.00582626,2575.3,2575.2,49.5593049]
[1750042213570,0.00582626,2575.3,2575.2,50.33019717]
[1750042213874,0.00582626,2575.3,2575.2,51.64439717]
[1750042214376,0.77641,2575.6,2575.5,0.77642]
[1750042214578,0.77641,2575.6,2575.5,2.17098693]
[1750042214769,0.77641,2575.6,2575.5,2.94740693]
[1750042214968,0.77641,2575.6,2575.5,2.17098693]
[1750042215274,0.77641,2575.6,2575.5,2.19773835]
[1750042215492,0.77641,2575.6,2575.5,2.97415835]
[1750042216278,0.77641,2575.6,2575.5,4.94865835]
[1750042217075,0.77641,2575.6,2575.5,4.17223835]
[1750042217281,0.77641,2575.6,2575.5,4.94865835]
[1750042217674,0.77641,2575.6,2575.5,4.17223835]
[1750042217874,0.77641,2575.6,2575.5,0.64365142]
[1750042218484,0.77641,2575.6,2575.5,1.42007142]
[1750042219078,0.00582626,2575.8,2575.5,2.07807142]
[1750042219277,0.00582626,2575.8,2575.7,2.94734693]
[1750042219674,0.78215626,2575.8,2575.7,2.94734693]
[1750042219872,0.78215626,2575.8,2575.7,3.02742951]
[1750042220077,0.00582626,2575.8,2575.7,3.02742951]
[1750042220375,3.2078,2576.5,2576.1,0.77623]
[1750042220579,3.2078,2576.2,2575.8,2.7944303]
[1750042220770,0.77624,2576.1,2576.0,0.08008258]
[1750042220977,2.69064,2576.1,2576.0,0.08008258]
[1750042224382,7.69064,2576.1,2576.0,0.08008258]
[1750042226385,2.69064,2576.1,2576.0,0.08008258]
[1750042227489,1.45394,2576.1,2576.0,2.25106951]
[1750042227681,1.45394,2576.1,2576.0,0.08008258]
[1750042231489,0.00582626,2576.3,2576.2,0.77621]
[1750042231681,0.00582626,2576.3,2576.2,2.94719693]
[1750042231877,0.00582626,2576.3,2576.2,3.02727951]
[1750042232582,0.00582626,2576.3,2576.2,6.23507951]
[1750042233489,0.00582626,2576.3,2576.2,7.48437951]
[1750042235185,3.2078,2576.9,2576.8,0.77603]
[1750042235389,3.98382,2576.9,2576.7,2.94702693]
[1750042235789,3.98382,2576.9,2576.8,0.74708258]
[1750042236301,3.98382,2576.9,2576.8,0.08008258]
[1750042243000,0.77602,2576.9,2576.8,0.08008258]
[1750042245703,0.00582626,2577.1,2577.0,0.77597]
[1750042245999,0.00582626,2577.1,2577.0,12.63183951]
[1750042246698,0.6299,2577.6,2577.0,11.85586951]
[1750042246896,3.98357,2577.7,2577.5,2.94678693]
[1750042247099,3.98357,2577.7,2577.6,0.6729]
[1750042247303,3.2078,2577.7,2577.6,1.44869]
[1750042247510,3.2078,2577.7,2577.6,2.81239]
[1750042248013,3.2078,2577.7,2577.6,2.89247258]
[1750042248309,3.98356,2577.7,2577.6,2.11668258]
[1750042248507,3.98356,2577.7,2577.6,2.89247258]
[1750042248711,3.98356,2577.7,2577.6,2.11668258]
[1750042249906,3.98356,2577.7,2577.6,0.75298258]
[1750042250100,3.98356,2577.7,2577.6,0.08008258]
[1750042250604,5.30676,2577.7,2577.6,0.08008258]
[1750042251910,0.77582,2577.5,2577.4,0.00582626]
[1750042252706,3.36522,2577.5,2577.4,0.00582626]
[1750042253613,0.776,2576.9,2576.8,2.82558693]
[1750042253801,0.776,2576.9,2576.8,9.22158693]
[1750042254110,0.776,2576.9,2576.8,0.6546]
[1750042254411,0.776,2576.9,2576.8,7.0506]
[1750042254615,2.17098693,2577.6,2576.8,13.3342]
[1750042254616,1.93948,2577.6,2576.8,13.3342]
[1750042254819,1.93948,2577.6,2577.2,5.37878693]
[1750042255013,3.25528,2577.6,2577.2,5.37878693]
[1750042255314,0.77588,2577.3,2577.2,5.37878693]
[1750042255914,0.77588,2577.3,2577.2,2.94688693]
[1750042256814,0.77587,2577.4,2577.2,2.94688693]
[1750042257025,0.77587,2577.4,2577.3,0.6574]
[1750042258916,3.2078,2577.7,2577.3,0.6574]
[1750042259116,0.77584,2577.5,2577.3,1.43328]
[1750042259319,0.77585,2577.4,2577.3,2.5637]
[1750042259616,0.77588,2577.3,2577.2,6.395]
[1750042260519,0.77587,2577.4,2577.2,9.34188693]
[1750042260818,0.77588,2577.3,2577.2,6.395]
[1750042261612,0.77588,2577.3,2577.2,8.56598693]
[1750042262522,0.77588,2577.3,2577.2,11.77378693]
[1750042263614,0.77588,2577.3,2577.2,6.395]
[1750042264122,0.646,2577.5,2577.0,2.94693693]
[1750042264317,0.77591,2577.2,2577.1,6.395]
[1750042264516,0.77594,2577.1,2577.0,2.94693693]
[1750042264714,0.77593,2577.2,2577.0,9.34193693]
[1750042265014,0.77594,2577.1,2577.0,9.34193693]
[1750042265319,0.77594,2577.1,2577.0,8.56598693]
[1750042265621,0.77594,2577.1,2577.0,6.395]
[1750042265816,0.77592,2577.2,2577.1,0.77593]
[1750042266215,0.77592,2577.2,2577.0,9.34193693]
[1750042266921,0.77593,2577.2,2577.0,9.34193693]
[1750042267319,0.77594,2577.1,2577.0,9.34193693]
[1750042267519,0.77594,2577.1,2577.0,8.56598693]
[1750042267718,0.77594,2577.1,2577.0,9.34195693]
[1750042268327,0.77593,2577.2,2577.1,0.77594]
[1750042268811,0.7759,2577.3,2577.1,0.77594]
[1750042269012,0.77584,2577.5,2577.2,5.37878693]
[1750042269216,0.77582,2577.5,2577.4,2.17098693]
[1750042269518,3.2078,2577.7,2577.6,0.77579]
[1750042269725,3.98356,2577.7,2577.6,2.17098693]
[1750042270026,3.2078,2577.7,2577.3,1.3523]
[1750042270214,0.77585,2577.4,2577.3,1.3523]
[1750042271724,0.77591,2577.2,2577.1,9.70777694]
[1750042271923,0.77591,2577.2,2577.1,10.33737694]
[1750042272127,0.77591,2577.2,2577.1,1.78139001]
[1750042272423,13.55598693,2577.2,2576.5,1.53879612]
[1750042272623,0.77606,2576.7,2576.4,0.6296]
[1750042272819,5.7773,2577.1,2576.6,2.17681319]
[1750042273019,0.776,2576.9,2576.8,2.17098693]
[1750042275631,0.776,2577.0,2576.8,2.17098693]
[1750042275824,0.776,2576.9,2576.8,2.82208693]
[1750042277030,0.77606,2576.7,2576.6,0.00582626]
[1750042277731,0.77621,2576.2,2576.1,6.385]
[1750042278426,0.77624,2576.1,2576.0,3.2078]
[1750042278627,0.77636,2575.7,2575.6,7.0333]
[1750042278821,0.77632,2575.9,2575.6,7.0333]
[1750042279019,0.77632,2575.9,2575.8,2.17098693]
[1750042282129,3.8306,2576.2,2575.9,0.77628]
[1750042282336,3.98401,2576.2,2576.1,2.17098693]
[1750042285532,0.77621,2576.2,2576.1,2.17098693]
[1750042286130,0.78202626,2576.3,2576.1,2.94721693]
[1750042286329,0.00582626,2576.3,2576.2,0.77621]
[1750042286633,0.00582626,2576.3,2576.2,2.68391]
[1750042286828,0.00582626,2576.3,2576.2,7.68391]
[1750042287031,0.00582626,2576.3,2576.2,10.89171]
[1750042288241,0.00582626,2576.3,2576.2,5.1155]
[1750042288542,0.00582626,2576.3,2576.2,12.27771]
[1750042289233,0.00582626,2576.3,2576.2,12.91501]
[1750042290944,3.2078,2577.3,2577.1,0.77593]
[1750042291237,0.7759,2577.3,2577.2,2.79758693]
[1750042291441,0.77588,2577.3,2577.2,46.31107693]
[1750042291939,0.77588,2577.3,2577.2,45.53518693]
[1750042292142,0.77588,2577.3,2577.2,44.25868693]
[1750042292432,0.00582626,2577.5,2577.4,0.77585]
[1750042292634,0.00582626,2577.5,2577.4,2.94683693]
[1750042295535,0.00582626,2577.5,2577.2,46.572]
[1750042295840,0.00582626,2577.5,2577.0,0.00582626]
[1750042295841,0.77591,2577.2,2577.0,0.00582626]
[1750042296048,0.7759,2577.3,2577.0,0.78179626]
[1750042296344,0.7759,2577.3,2577.1,0.77594]
[1750042296345,0.77588,2577.3,2577.1,0.77594]
[1750042296530,0.77594,2577.1,2577.0,0.00582626]
[1750042298741,0.77606,2576.7,2576.6,3.2078]
[1750042300549,0.77612,2576.5,2576.4,6.39082626]
[1750042300736,0.77611,2576.6,2576.4,6.39082626]
[1750042300940,3.98392,2576.5,2576.4,0.00582626]
[1750042301137,3.98392,2576.5,2575.8,5.51844545]
[1750042301138,4.5675,2576.5,2575.8,3.2078]
[1750042301550,0.77623,2576.2,2575.9,0.81766]
[1750042301840,0.6248,2576.7,2576.1,3.2078]
[1750042302041,0.6248,2576.7,2576.6,0.77609]
[1750042302340,0.77606,2576.7,2576.5,0.7761]
[1750042304443,3.8629,2577.1,2576.4,4.5463]
[1750042304745,0.77608,2576.7,2576.5,0.77612]
[1750042305141,0.77602,2576.9,2576.4,4.5463]
[1750042305341,0.77602,2576.9,2576.6,0.77607]
[1750042305543,0.77602,2576.9,2576.4,4.5463]
[1750042305744,0.77603,2576.8,2576.6,0.77606]
[1750042306147,0.77606,2576.7,2576.6,0.77606]
[1750042306647,0.77606,2576.7,2576.5,0.77611]
[1750042306946,3.86289,2577.1,2576.5,0.77611]
[1750042307139,0.77607,2576.7,2576.5,0.77611]
[1750042308452,0.77605,2576.8,2576.4,4.5463]
[1750042308643,0.77605,2576.8,2576.6,0.77606]
[1750042308849,1.923,2577.1,2576.7,0.77606]
[1750042308850,0.77602,2576.9,2576.7,0.77606]
[1750042309051,0.77603,2576.8,2576.7,0.77606]
[1750042309440,0.77602,2576.9,2576.7,0.77606]
[1750042309850,0.77603,2576.8,2576.7,0.77606]
[1750042310144,0.77598,2577.0,2576.7,3.2078]
[1750042310351,0.776,2576.9,2576.8,0.77601]
[1750042310747,0.646,2577.1,2576.7,5.1167]
[1750042310748,0.646,2577.1,2576.7,5.89274]
[1750042310948,0.646,2577.1,2576.7,4.63184]
[1750042311247,3.2078,2576.9,2576.4,3.98393]
[1750042311453,0.77612,2576.5,2576.4,3.2078]
[1750042311653,0.77612,2576.5,2576.4,3.98395]
[1750042312054,0.77612,2576.5,2576.4,3.2078]
[1750042313850,1.4266,2576.6,2576.4,3.2078]
[1750042314046,0.6505,2576.6,2576.4,3.2078]
[1750042314254,1.42659,2576.6,2576.4,3.98393]
[1750042314756,1.42659,2576.6,2576.5,0.77612]
[1750042315248,0.77612,2576.5,2576.4,3.98394]
[1750042315455,0.6505,2576.6,2576.2,7.81679]
[1750042315456,0.77617,2576.4,2576.2,7.81679]
[1750042315971,0.77617,2576.4,2576.3,0.77618]
[1750042316549,0.6505,2576.6,2576.4,0.77615]
[1750042316748,1.42661,2576.6,2576.4,0.77615]
[1750042316947,0.6505,2576.6,2576.2,7.0406]
[1750042317149,1.2353,2576.5,2576.2,7.0406]
[1750042317355,0.77618,2576.3,2576.2,7.0406]
[1750042317652,0.77621,2576.2,2576.1,3.21362626]
[1750042317857,0.77621,2576.2,2576.1,0.00582626]
[1750042318747,3.98401,2576.2,2576.1,0.00582626]
[1750042318949,3.98401,2576.2,2575.9,0.04139]
[1750042318950,0.77627,2576.0,2575.9,0.04139]
[1750042319150,1.94069,2576.0,2575.3,7.0045]
[1750042319349,0.77645,2575.4,2575.3,7.0045]
[1750042320552,0.77644,2575.5,2575.3,7.0045]
[1750042320857,0.66452626,2575.6,2575.5,0.77642]
[1750042321160,0.00582626,2575.6,2575.5,0.77642]
[1750042321859,0.77629,2576.0,2575.8,0.77632]
[1750042322047,3.2078,2576.2,2575.8,7.54633169]
[1750042322253,3.2078,2576.2,2576.0,0.77627]
[1750042322655,3.98401,2576.2,2576.0,0.77627]
[1750042323259,3.2078,2576.2,2576.1,0.77624]
[1750042323461,3.98402,2576.2,2576.0,2.02855]
[1750042323964,3.98402,2576.2,2576.1,0.77624]
[1750042325161,3.98401,2576.2,2576.0,1.2523]
[1750042325457,3.98401,2576.2,2576.0,2.02856]
[1750042325659,3.98401,2576.2,2576.0,1.2523]
[1750042325844,3.98401,2576.2,2575.8,1.53846807]
[1750042325845,3.2078,2576.2,2575.8,1.53846807]
[1750042326057,24.124,2576.1,2575.5,0.62]
[1750042326250,0.77625,2576.1,2575.9,0.77627]
[1750042326456,0.77633,2575.9,2575.6,1.2987]
[1750042326859,0.77633,2575.9,2575.7,0.77634]
[1750042327055,1.283,2576.3,2575.8,3.2078]
[1750042327259,0.7762,2576.3,2576.0,0.77624]
[1750042327454,0.68812626,2576.4,2576.0,0.77626]
[1750042327653,0.77625,2576.1,2575.9,5.11481169]
[1750042327861,0.77623,2576.2,2576.0,0.77627]
[1750042328056,0.77623,2576.2,2576.0,0.6355]
[1750042328360,0.77624,2576.1,2576.0,0.6355]
[1750042328563,0.77623,2576.2,2576.0,1.41177]
[1750042328861,0.77624,2576.1,2576.0,1.41177]
[1750042329059,0.68812626,2576.4,2576.1,0.77623]
[1750042329358,0.68812626,2576.4,2576.0,0.6355]
[1750042329556,0.77621,2576.2,2576.0,1.41175]
[1750042329751,0.77621,2576.2,2576.0,0.6355]
[1750042329962,0.77619,2576.3,2576.1,0.77624]
[1750042330162,0.68812626,2576.4,2576.1,0.77624]
[1750042330364,0.7762,2576.3,2576.1,0.77624]
[1750042330658,0.68812626,2576.4,2576.1,0.77624]
[1750042330851,0.68812626,2576.4,2576.2,0.7762]
[1750042331158,0.77623,2576.2,2576.0,1.41176]
[1750042331357,0.68812626,2576.4,2576.0,0.6355]
[1750042331549,0.77619,2576.3,2576.1,0.77622]
[1750042331750,0.00582626,2576.4,2576.3,0.77618]
[1750042332251,3.2078,2576.8,2576.3,15.71053169]
[1750042332462,3.98384,2576.8,2576.6,0.77607]
[1750042332654,0.77606,2576.7,2576.6,0.77607]
[1750042333358,6.45401,2577.2,2576.5,48.6115]
[1750042333359,0.77609,2576.6,2576.5,48.6115]
[1750042333580,0.77609,2576.6,2576.5,47.8354]
[1750042333758,0.77608,2576.7,2576.5,42.23951]
[1750042333957,0.77612,2576.5,2576.4,1.16248441]
[1750042334264,0.77612,2576.5,2576.4,0.00582626]
[1750042334865,2.08252,2576.5,2576.4,0.00582626]
[1750042336365,0.7763,2575.9,2575.8,6.372]
[1750042338760,0.77636,2575.7,2575.6,1.32192626]
[1750042339471,3.98416,2575.7,2575.6,0.00582626]
[1750042339669,0.77636,2575.7,2575.6,0.00582626]
[1750042341665,7.0648,2576.0,2575.8,0.77633]
[1750042341860,7.84108,2576.0,2575.8,5.11484169]
[1750042342360,7.84108,2576.0,2575.8,7.02204169]
[1750042342562,3.857,2576.0,2575.9,0.7763]
[1750042342765,3.857,2576.0,2575.9,2.0611]
[1750042342962,4.63327,2576.0,2575.9,2.0611]
[1750042343267,0.7763,2575.9,2575.8,1.77905815]
[1750042343664,0.7763,2575.9,2575.8,1.39873]
[1750042344059,4.63328,2576.0,2575.9,0.7763]
[1750042344364,0.7763,2575.9,2575.8,3.06385815]
[1750042344563,0.7763,2575.9,2575.8,0.6224]
[1750042345464,0.77633,2575.8,2575.7,0.647]
[1750042345665,0.77633,2575.8,2575.7,1.42336]
[1750042345866,0.77633,2575.8,2575.7,0.647]
[1750042346266,0.77636,2575.7,2575.6,10.74328441]
[1750042346466,0.77636,2575.7,2575.6,9.58662626]
[1750042346664,0.77636,2575.7,2575.6,3.21362626]
[1750042349275,0.77634,2575.8,2575.6,3.99000626]
[1750042349871,0.77636,2575.7,2575.6,3.21362626]
[1750042350081,0.77634,2575.8,2575.6,3.21362626]
[1750042350371,0.77636,2575.7,2575.6,3.21362626]
[1750042350571,0.77636,2575.7,2575.6,3.99001626]
[1750042350973,0.77636,2575.7,2575.6,3.21362626]
[1750042351782,0.77631,2575.9,2575.6,3.21362626]
[1750042351963,0.77633,2575.8,2575.7,1.45895]
[1750042352163,4.5017,2576.4,2575.7,12.55248909]
[1750042352377,4.62501,2576.6,2576.4,0.77613]
[1750042352573,4.62501,2576.6,2576.1,7.54633169]
[1750042352574,3.2078,2576.6,2576.5,0.77612]
[1750042352777,0.77604,2576.8,2576.6,0.77608]
[1750042353178,3.86282626,2576.9,2576.6,0.77609]
[1750042353365,3.86282626,2576.9,2576.7,0.77606]
[1750042353572,4.63883626,2576.9,2576.7,0.77606]
[1750042354070,3.86282626,2576.9,2576.5,0.6177]
[1750042354273,0.77607,2576.7,2576.6,1.3354]
[1750042354484,3.86282626,2576.9,2576.7,0.77605]
[1750042354688,0.77604,2576.8,2576.6,2.11147]
[1750042355278,0.77606,2576.7,2576.6,2.11147]
[1750042355475,3.86282626,2576.9,2576.7,0.77603]
[1750042355676,5.80286626,2576.9,2576.5,0.6177]
[1750042355883,7.07626626,2576.9,2576.3,1.1583574]
[1750042356087,0.77614,2576.5,2576.3,1.9345274]
[1750042356591,0.77615,2576.4,2576.3,1.1583574]
[1750042356791,0.77615,2576.4,2576.3,1.9345374]
[1750042357091,0.77614,2576.5,2576.3,1.9345274]
[1750042357686,0.77614,2576.5,2576.4,0.77615]
[1750042358087,1.27922626,2576.9,2576.4,0.77615]
[1750042358388,1.27922626,2576.9,2576.2,9.5614574]
[1750042358389,1.94012,2576.8,2576.2,9.5614574]
[1750042358591,0.77618,2576.4,2576.2,9.5614574]
[1750042358780,0.77613,2576.5,2576.3,0.77618]
[1750042359787,0.77613,2576.5,2576.2,8.7802574]
[1750042359788,0.77615,2576.4,2576.2,8.39809]
[1750042359980,0.77615,2576.4,2576.3,0.77618]
[1750042360183,0.77614,2576.5,2576.3,0.77618]
[1750042360489,0.77615,2576.4,2576.3,0.77618]
[1750042361187,0.77615,2576.4,2576.2,8.39809]
[1750042361388,0.77614,2576.5,2576.3,0.77617]
[1750042361589,0.77617,2576.4,2576.2,8.3981]